[Event "*** Titled Tuesday Blitz"]
[Site "Chess.com"]
[Date "2018.05.01"]
[Round "8"]
[White "Shtembuliak"]
[Black "GMSrinath"]
[Result "1-0"]
[WhiteElo "2687"]
[BlackElo "2734"]
[TimeControl "180+2"]
[EndTime "14:48:17 PDT"]
[Termination "Shtembuliak won by resignation"]

1. Nf3 {[%clk 0:03:01.9]} 1... d5 {[%clk 0:02:56.8]} 2. g3 {[%clk 0:03:01.9]}
2... g6 {[%clk 0:02:58]} 3. Bg2 {[%clk 0:03:02.5]} 3... Bg7 {[%clk 0:02:59.6]}
4. c4 {[%clk 0:03:03.9]} 4... dxc4 {[%clk 0:02:59]} 5. O-O {[%clk 0:03:02.3]}
5... Nf6 {[%clk 0:02:59.3]} 6. Na3 {[%clk 0:03:02.2]} 6... O-O {[%clk
0:02:58.9]} 7. Nxc4 {[%clk 0:03:03]} 7... Nc6 {[%clk 0:03:00.4]} 8. d3 {[%clk
0:03:03.4]} 8... Nd5 {[%clk 0:03:01.5]} 9. a3 {[%clk 0:02:57.6]} 9... a5 {[%clk
0:03:01.6]} 10. Qc2 {[%clk 0:02:44.1]} 10... Bg4 {[%clk 0:03:00.5]} 11. e3
{[%clk 0:02:40]} 11... a4 {[%clk 0:03:00.5]} 12. h3 {[%clk 0:02:34.5]} 12... Be6
{[%clk 0:02:59.2]} 13. Ng5 {[%clk 0:02:35]} 13... Bc8 {[%clk 0:02:53]} 14. Ne4
{[%clk 0:02:34.1]} 14... e6 {[%clk 0:02:26]} 15. Rb1 {[%clk 0:02:30.9]} 15...
Na5 {[%clk 0:01:38.1]} 16. Nxa5 {[%clk 0:02:23.8]} 16... Rxa5 {[%clk 0:01:40]}
17. b4 {[%clk 0:02:23]} 17... axb3 {[%clk 0:01:40.5]} 18. Rxb3 {[%clk
0:02:22.2]} 18... b6 {[%clk 0:01:41.3]} 19. Bb2 {[%clk 0:02:22.2]} 19... f6
{[%clk 0:01:33.8]} 20. Nc3 {[%clk 0:02:15.5]} 20... Ne7 {[%clk 0:01:33.5]} 21.
d4 {[%clk 0:02:13.3]} 21... Bd7 {[%clk 0:01:30.1]} 22. Rc1 {[%clk 0:02:10.5]}
22... c5 {[%clk 0:01:27.4]} 23. dxc5 {[%clk 0:02:08.9]} 23... Rxc5 {[%clk
0:01:29.3]} 24. Qb1 {[%clk 0:02:07.7]} 24... f5 {[%clk 0:01:26]} 25. Ne2 {[%clk
0:02:06.3]} 25... Rxc1+ {[%clk 0:01:15.7]} 26. Qxc1 {[%clk 0:02:06.3]} 26...
Bxb2 {[%clk 0:00:35.1]} 27. Qxb2 {[%clk 0:02:06.4]} 27... b5 {[%clk 0:00:31.5]}
28. Nd4 {[%clk 0:02:05.5]} 28... Qa5 {[%clk 0:00:31.8]} 29. Nxb5 {[%clk
0:01:56]} 29... Bc6 {[%clk 0:00:26.5]} 30. Bxc6 {[%clk 0:01:48.7]} 30... Nxc6
{[%clk 0:00:28.4]} 31. Qc3 {[%clk 0:01:44.5]} 31... Qa8 {[%clk 0:00:23.1]} 32.
Nc7 {[%clk 0:01:42.6]} 32... Qa4 {[%clk 0:00:10.8]} 33. Nxe6 {[%clk 0:01:39.8]}
33... Rf7 {[%clk 0:00:12.2]} 34. Rb8+ {[%clk 0:01:33]} 1-0

[Event "*** Titled Tuesday Blitz"]
[Site "Chess.com"]
[Date "2018.05.01"]
[Round "8"]
[White "Eliwood44"]
[Black "evgenysharapov"]
[Result "1-0"]
[WhiteElo "2190"]
[BlackElo "2292"]
[TimeControl "180+2"]
[EndTime "14:48:22 PDT"]
[Termination "Eliwood44 won by resignation"]

1. d4 {[%clk 0:03:01.2]} 1... d5 {[%clk 0:03:00.5]} 2. Nf3 {[%clk 0:03:01.4]}
2... Nf6 {[%clk 0:03:00.8]} 3. e3 {[%clk 0:03:02.4]} 3... c5 {[%clk 0:02:59.1]}
4. c4 {[%clk 0:02:53.7]} 4... Nc6 {[%clk 0:02:57.9]} 5. cxd5 {[%clk 0:02:51.7]}
5... Nxd5 {[%clk 0:02:58]} 6. Be2 {[%clk 0:02:51.3]} 6... cxd4 {[%clk
0:02:56.4]} 7. Nxd4 {[%clk 0:02:51.5]} 7... Ndb4 {[%clk 0:02:56.5]} 8. a3 {[%clk
0:02:49.3]} 8... Nxd4 {[%clk 0:02:55]} 9. exd4 {[%clk 0:02:49.1]} 9... Nd5
{[%clk 0:02:55.2]} 10. Nc3 {[%clk 0:02:50]} 10... Nxc3 {[%clk 0:02:50.8]} 11.
bxc3 {[%clk 0:02:51.9]} 11... e6 {[%clk 0:02:51.2]} 12. O-O {[%clk 0:02:52.4]}
12... Be7 {[%clk 0:02:51.8]} 13. Rb1 {[%clk 0:02:46.5]} 13... O-O {[%clk
0:02:49.5]} 14. Bf3 {[%clk 0:02:47.6]} 14... Rb8 {[%clk 0:02:49.9]} 15. a4
{[%clk 0:02:33.8]} 15... b6 {[%clk 0:02:43.4]} 16. a5 {[%clk 0:02:33.2]} 16...
Bb7 {[%clk 0:02:42.7]} 17. axb6 {[%clk 0:02:32.9]} 17... Bxf3 {[%clk 0:02:40.6]}
18. Qxf3 {[%clk 0:02:32.4]} 18... Rxb6 {[%clk 0:02:39.9]} 19. Bf4 {[%clk
0:02:26.9]} 19... Qd7 {[%clk 0:02:35.4]} 20. Rxb6 {[%clk 0:02:25.9]} 20... axb6
{[%clk 0:02:35.7]} 21. Rb1 {[%clk 0:02:27.1]} 21... b5 {[%clk 0:02:31.9]} 22.
Qd3 {[%clk 0:02:22.4]} 22... Rc8 {[%clk 0:02:28]} 23. h3 {[%clk 0:02:10]} 23...
Rc4 {[%clk 0:02:23.4]} 24. Qf3 {[%clk 0:02:02]} 24... h6 {[%clk 0:02:16.9]} 25.
Qa8+ {[%clk 0:02:01.7]} 25... Kh7 {[%clk 0:02:14.1]} 26. Qe4+ {[%clk 0:02:02.2]}
26... g6 {[%clk 0:02:09.3]} 27. Qe3 {[%clk 0:02:00.4]} 27... Bf8 {[%clk
0:02:05.7]} 28. Be5 {[%clk 0:01:49.5]} 28... Qc6 {[%clk 0:02:03.3]} 29. Qf4
{[%clk 0:01:46.8]} 29... f5 {[%clk 0:02:02.3]} 30. Ra1 {[%clk 0:01:40]} 30...
Kg8 {[%clk 0:01:51.1]} 31. Qh4 {[%clk 0:01:15.9]} 31... Rxc3 {[%clk 0:01:44.9]}
32. Qf6 {[%clk 0:01:15.4]} 32... Rc1+ {[%clk 0:01:31.9]} 33. Kh2 {[%clk
0:01:14.5]} 1-0

[Event "*** Titled Tuesday Blitz"]
[Site "Chess.com"]
[Date "2018.05.01"]
[Round "8"]
[White "colegiodemadrid"]
[Black "Vamostodorecto"]
[Result "1-0"]
[WhiteElo "2288"]
[BlackElo "2380"]
[TimeControl "180+2"]
[EndTime "14:48:51 PDT"]
[Termination "colegiodemadrid won by checkmate"]

1. e4 {[%clk 0:03:01.9]} 1... e5 {[%clk 0:03:00.1]} 2. Nf3 {[%clk 0:03:02.1]}
2... Nc6 {[%clk 0:03:01.5]} 3. Bb5 {[%clk 0:03:03]} 3... a6 {[%clk 0:03:01.6]}
4. Ba4 {[%clk 0:03:03.7]} 4... Nf6 {[%clk 0:03:03.1]} 5. Qe2 {[%clk 0:03:04.7]}
5... b5 {[%clk 0:03:03.5]} 6. Bb3 {[%clk 0:03:05.8]} 6... Bb7 {[%clk 0:03:02.5]}
7. a4 {[%clk 0:03:04.3]} 7... Bc5 {[%clk 0:02:31.6]} 8. axb5 {[%clk 0:02:59.7]}
8... axb5 {[%clk 0:02:33.5]} 9. Rxa8 {[%clk 0:03:00.3]} 9... Qxa8 {[%clk
0:02:35.2]} 10. Qxb5 {[%clk 0:03:00.6]} 10... d6 {[%clk 0:02:36]} 11. Qe2 {[%clk
0:02:57.7]} 11... Qa1 {[%clk 0:02:30.7]} 12. O-O {[%clk 0:02:51.9]} 12... Qxb1
{[%clk 0:02:27.7]} 13. Qb5 {[%clk 0:02:50.1]} 13... Ba8 {[%clk 0:02:23]} 14. Bd5
{[%clk 0:02:37.3]} 14... Kd7 {[%clk 0:01:09.9]} 15. Qa4 {[%clk 0:02:06.9]} 15...
Ng4 {[%clk 0:00:54]} 16. d4 {[%clk 0:01:59]} 16... exd4 {[%clk 0:00:55.8]} 17.
h3 {[%clk 0:01:44.3]} 17... Nxf2 {[%clk 0:00:42.4]} 18. Kxf2 {[%clk 0:01:35]}
18... d3+ {[%clk 0:00:42.9]} 19. Kg3 {[%clk 0:01:20.8]} 19... Qxc2 {[%clk
0:00:37.5]} 20. Qxc2 {[%clk 0:01:11.7]} 20... dxc2 {[%clk 0:00:37.7]} 21. Bxf7
{[%clk 0:01:12.1]} 21... Nd4 {[%clk 0:00:35.2]} 22. Ng5 {[%clk 0:00:39.7]} 22...
Ne2+ {[%clk 0:00:34]} 23. Kh4 {[%clk 0:00:32.2]} 23... h6 {[%clk 0:00:22]} 24.
Be6+ {[%clk 0:00:33]} 24... Ke7 {[%clk 0:00:19.7]} 25. Rf7+ {[%clk 0:00:25.2]}
25... Ke8 {[%clk 0:00:20.6]} 26. Bd7+ {[%clk 0:00:21.3]} 26... Kd8 {[%clk
0:00:15.2]} 27. Ne6# {[%clk 0:00:21.7]} 1-0

[Event "*** Titled Tuesday Blitz"]
[Site "Chess.com"]
[Date "2018.05.01"]
[Round "8"]
[White "Firouzja2003"]
[Black "dretch"]
[Result "0-1"]
[WhiteElo "2850"]
[BlackElo "2746"]
[TimeControl "180+2"]
[EndTime "14:48:56 PDT"]
[Termination "dretch won by resignation"]

1. e4 {[%clk 0:03:01.9]} 1... e6 {[%clk 0:03:01]} 2. d4 {[%clk 0:03:02.4]} 2...
d5 {[%clk 0:03:02.2]} 3. Nc3 {[%clk 0:03:04]} 3... Nf6 {[%clk 0:03:02.9]} 4. e5
{[%clk 0:03:05.4]} 4... Nfd7 {[%clk 0:03:04.4]} 5. f4 {[%clk 0:03:07]} 5... c5
{[%clk 0:03:05.8]} 6. Nf3 {[%clk 0:03:08.7]} 6... Nc6 {[%clk 0:03:06.5]} 7. Be3
{[%clk 0:03:10.3]} 7... cxd4 {[%clk 0:03:06.7]} 8. Nxd4 {[%clk 0:03:11.2]} 8...
Bc5 {[%clk 0:03:08.6]} 9. Qd2 {[%clk 0:03:11.9]} 9... O-O {[%clk 0:03:09.8]} 10.
O-O-O {[%clk 0:03:13]} 10... a6 {[%clk 0:03:11.1]} 11. Qf2 {[%clk 0:03:13.8]}
11... Bxd4 {[%clk 0:03:11.7]} 12. Bxd4 {[%clk 0:03:14.6]} 12... b5 {[%clk
0:03:13.6]} 13. Kb1 {[%clk 0:02:59]} 13... b4 {[%clk 0:03:11]} 14. Ne2 {[%clk
0:02:45.3]} 14... a5 {[%clk 0:03:11.3]} 15. Ng3 {[%clk 0:02:45.8]} 15... a4
{[%clk 0:03:01.6]} 16. Bb5 {[%clk 0:02:46.3]} 16... Nxd4 {[%clk 0:02:58.8]} 17.
Rxd4 {[%clk 0:02:46.1]} 17... b3 {[%clk 0:02:56.9]} 18. cxb3 {[%clk 0:02:40.1]}
18... axb3 {[%clk 0:02:56.2]} 19. a3 {[%clk 0:02:41.6]} 19... Qb6 {[%clk
0:02:51.9]} 20. Bxd7 {[%clk 0:02:15]} 20... Bxd7 {[%clk 0:02:52.5]} 21. Nh5
{[%clk 0:02:16.6]} 21... f5 {[%clk 0:02:23.1]} 22. exf6 {[%clk 0:02:11.5]} 22...
g6 {[%clk 0:02:23.5]} 23. Ng3 {[%clk 0:01:38.2]} 23... Rxf6 {[%clk 0:02:08.8]}
24. Qe3 {[%clk 0:01:39.2]} 24... Raf8 {[%clk 0:02:05.8]} 25. Re1 {[%clk
0:01:27.5]} 25... Bb5 {[%clk 0:01:58]} 26. Ka1 {[%clk 0:01:16.1]} 26... Bc4
{[%clk 0:01:53.3]} 27. Ne2 {[%clk 0:00:49.5]} 27... e5 {[%clk 0:01:52.2]} 28.
Rd3 {[%clk 0:00:19.8]} 28... Qxe3 {[%clk 0:01:52.4]} 29. Rxe3 {[%clk 0:00:21.7]}
29... exf4 {[%clk 0:01:54]} 30. Re7 {[%clk 0:00:20.9]} 30... f3 {[%clk
0:01:54.3]} 31. gxf3 {[%clk 0:00:21.2]} 31... Rxf3 {[%clk 0:01:56.2]} 32. Nd4
{[%clk 0:00:22.5]} 32... Rf1 {[%clk 0:01:55.4]} 33. Kb1 {[%clk 0:00:23.2]} 33...
R8f4 {[%clk 0:01:42.7]} 34. Re8+ {[%clk 0:00:22.7]} 34... Kf7 {[%clk 0:01:41.5]}
35. Nc6 {[%clk 0:00:20.6]} 35... Bd3+ {[%clk 0:01:37.5]} 36. Kc1 {[%clk
0:00:21.2]} 36... Be4 {[%clk 0:01:36.8]} 37. Re7+ {[%clk 0:00:20.8]} 37... Kf6
{[%clk 0:01:35.7]} 38. Rxf1 {[%clk 0:00:20.3]} 38... Rxf1+ {[%clk 0:01:37.6]}
39. Kd2 {[%clk 0:00:21.6]} 39... Rf2+ {[%clk 0:01:38.3]} 40. Ke3 {[%clk
0:00:22.7]} 40... Rc2 {[%clk 0:01:34.8]} 41. Rc7 {[%clk 0:00:23.6]} 41... Rxb2
{[%clk 0:01:29.4]} 42. Rb7 {[%clk 0:00:21.8]} 42... Rxh2 {[%clk 0:01:28.1]} 43.
Rb6 {[%clk 0:00:22.3]} 43... b2 {[%clk 0:01:25.6]} 44. Nd4+ {[%clk 0:00:22.8]}
44... Kf7 {[%clk 0:01:24.6]} 45. Rb7+ {[%clk 0:00:23.6]} 45... Ke8 {[%clk
0:01:25.1]} 0-1

[Event "*** Titled Tuesday Blitz"]
[Site "Chess.com"]
[Date "2018.05.01"]
[Round "8"]
[White "Ginger_GM"]
[Black "eljanov"]
[Result "1-0"]
[WhiteElo "2506"]
[BlackElo "2647"]
[TimeControl "180+2"]
[EndTime "14:49:01 PDT"]
[Termination "Ginger_GM won by resignation"]

1. d4 {[%clk 0:03:01.9]} 1... d5 {[%clk 0:02:59.9]} 2. c4 {[%clk 0:03:02.2]}
2... c6 {[%clk 0:03:00.6]} 3. Nc3 {[%clk 0:03:02.5]} 3... Nf6 {[%clk 0:03:01.1]}
4. Nf3 {[%clk 0:03:03.1]} 4... a6 {[%clk 0:03:01.6]} 5. h4 {[%clk 0:02:59.4]}
5... Bf5 {[%clk 0:02:46.1]} 6. Ne5 {[%clk 0:02:44.6]} 6... e6 {[%clk 0:02:38.2]}
7. e3 {[%clk 0:02:43.3]} 7... h5 {[%clk 0:02:20]} 8. Bd3 {[%clk 0:02:14.7]} 8...
Bxd3 {[%clk 0:02:17]} 9. Qxd3 {[%clk 0:02:15.4]} 9... Nbd7 {[%clk 0:02:15.2]}
10. Nxd7 {[%clk 0:02:12]} 10... Qxd7 {[%clk 0:02:15.7]} 11. O-O {[%clk
0:02:09.7]} 11... b5 {[%clk 0:01:54.9]} 12. c5 {[%clk 0:02:04.1]} 12... a5
{[%clk 0:01:45.1]} 13. e4 {[%clk 0:01:34.1]} 13... dxe4 {[%clk 0:01:44.6]} 14.
Nxe4 {[%clk 0:01:34.5]} 14... Nxe4 {[%clk 0:01:36.2]} 15. Qxe4 {[%clk
0:01:35.4]} 15... Be7 {[%clk 0:01:27]} 16. Bg5 {[%clk 0:01:29.9]} 16... Bxg5
{[%clk 0:01:25.9]} 17. hxg5 {[%clk 0:01:30.9]} 17... Rd8 {[%clk 0:01:27]} 18. g6
{[%clk 0:01:23]} 18... f5 {[%clk 0:01:18.3]} 19. Qe5 {[%clk 0:01:15.5]} 19...
O-O {[%clk 0:01:19.3]} 20. Qh2 {[%clk 0:01:07.3]} 20... Qxd4 {[%clk 0:00:58.4]}
21. Qxh5 {[%clk 0:01:07.2]} 21... Rfe8 {[%clk 0:00:59.5]} 22. Rad1 {[%clk
0:00:57.8]} 22... Qf6 {[%clk 0:01:00.6]} 23. Rd6 {[%clk 0:00:53]} 23... Kf8
{[%clk 0:00:55.4]} 24. Rxc6 {[%clk 0:00:36.9]} 24... Rd4 {[%clk 0:00:39.6]} 25.
Qh8+ {[%clk 0:00:32.5]} 25... Ke7 {[%clk 0:00:39.6]} 26. Rc7+ {[%clk 0:00:33.9]}
26... Rd7 {[%clk 0:00:40.3]} 27. Rxd7+ {[%clk 0:00:29.2]} 27... Kxd7 {[%clk
0:00:41.4]} 28. Rd1+ {[%clk 0:00:30.2]} 28... Ke7 {[%clk 0:00:41.7]} 29. Qh2
{[%clk 0:00:31]} 29... Qxg6 {[%clk 0:00:39]} 30. Qd6+ {[%clk 0:00:30]} 30... Kf7
{[%clk 0:00:35.9]} 31. c6 {[%clk 0:00:31.1]} 31... Qg4 {[%clk 0:00:34.6]} 32. c7
{[%clk 0:00:27.2]} 32... Qc4 {[%clk 0:00:35.7]} 33. Qd7+ {[%clk 0:00:25.2]}
33... Kf8 {[%clk 0:00:36.8]} 34. Qxe8+ {[%clk 0:00:24.3]} 34... Kxe8 {[%clk
0:00:36.4]} 35. Rd8+ {[%clk 0:00:25.8]} 35... Kf7 {[%clk 0:00:36.2]} 36. c8=Q
{[%clk 0:00:27.4]} 1-0

[Event "*** Titled Tuesday Blitz"]
[Site "Chess.com"]
[Date "2018.05.01"]
[Round "8"]
[White "Vusatiuk_Vladimir"]
[Black "MartinMatthiesen"]
[Result "0-1"]
[WhiteElo "2179"]
[BlackElo "2376"]
[TimeControl "180+2"]
[EndTime "14:49:03 PDT"]
[Termination "MartinMatthiesen won by resignation"]

1. e4 {[%clk 0:03:01.9]} 1... e5 {[%clk 0:02:58.1]} 2. Nf3 {[%clk 0:02:50.8]}
2... Nc6 {[%clk 0:02:58.5]} 3. d4 {[%clk 0:02:50.9]} 3... exd4 {[%clk
0:02:58.9]} 4. Nxd4 {[%clk 0:02:48.3]} 4... Bc5 {[%clk 0:03:00.2]} 5. Nb3 {[%clk
0:02:46.5]} 5... Bb6 {[%clk 0:02:59.6]} 6. Nc3 {[%clk 0:02:47.3]} 6... Nf6
{[%clk 0:02:59.9]} 7. Qe2 {[%clk 0:02:48.7]} 7... O-O {[%clk 0:02:55.3]} 8. Be3
{[%clk 0:02:47.9]} 8... d5 {[%clk 0:02:50.6]} 9. Bxb6 {[%clk 0:02:23.2]} 9...
axb6 {[%clk 0:02:45.1]} 10. O-O-O {[%clk 0:02:24.1]} 10... d4 {[%clk 0:02:36.3]}
11. a3 {[%clk 0:02:17.7]} 11... Bg4 {[%clk 0:02:27.7]} 12. f3 {[%clk 0:02:16.5]}
12... Be6 {[%clk 0:02:27.3]} 13. Kb1 {[%clk 0:02:14]} 13... dxc3 {[%clk
0:01:45.8]} 14. Rxd8 {[%clk 0:02:10.2]} 14... Rfxd8 {[%clk 0:01:47.7]} 15. bxc3
{[%clk 0:02:07.6]} 15... Rxa3 {[%clk 0:01:47.1]} 16. Nd4 {[%clk 0:02:00.2]}
16... Nxd4 {[%clk 0:01:39.3]} 17. cxd4 {[%clk 0:02:01]} 17... Rxd4 {[%clk
0:01:40.9]} 18. Qb5 {[%clk 0:01:56.2]} 18... Rd1+ {[%clk 0:01:38.9]} 19. Kb2
{[%clk 0:01:56]} 19... Raa1 {[%clk 0:01:38.6]} 20. Qe5 {[%clk 0:01:49.6]} 20...
Ne8 {[%clk 0:01:27.9]} 21. Bb5 {[%clk 0:01:44.8]} 21... Rxh1 {[%clk 0:01:02.4]}
22. Bxe8 {[%clk 0:01:43.9]} 22... Ra2+ {[%clk 0:00:50.5]} 23. Kc3 {[%clk
0:01:44.5]} 23... Rc1 {[%clk 0:00:51]} 24. Bb5 {[%clk 0:01:34.9]} 24... Raxc2+
{[%clk 0:00:50.5]} 25. Kd4 {[%clk 0:01:33.1]} 25... Rc3 {[%clk 0:00:46.8]} 26.
Bd3 {[%clk 0:01:26.9]} 26... h6 {[%clk 0:00:35.6]} 27. f4 {[%clk 0:01:27.4]}
27... Ra3 {[%clk 0:00:26.4]} 28. Be2 {[%clk 0:01:13.8]} 28... c5+ {[%clk
0:00:24.4]} 29. Qxc5 {[%clk 0:01:07.8]} 29... bxc5+ {[%clk 0:00:25.2]} 30. Ke5
{[%clk 0:01:07.5]} 30... Re1 {[%clk 0:00:22.8]} 0-1

[Event "*** Titled Tuesday Blitz"]
[Site "Chess.com"]
[Date "2018.05.01"]
[Round "8"]
[White "savinspm"]
[Black "TrimitziosP7"]
[Result "1-0"]
[WhiteElo "2001"]
[BlackElo "2492"]
[TimeControl "180+2"]
[EndTime "14:49:06 PDT"]
[Termination "savinspm won by resignation"]

1. e4 {[%clk 0:02:59.5]} 1... e5 {[%clk 0:03:00.9]} 2. Nf3 {[%clk 0:02:59.9]}
2... Nc6 {[%clk 0:03:01.8]} 3. Bb5 {[%clk 0:03:00.7]} 3... Nf6 {[%clk
0:03:02.7]} 4. Bxc6 {[%clk 0:03:01.5]} 4... dxc6 {[%clk 0:03:03.6]} 5. O-O
{[%clk 0:03:00.2]} 5... Bd6 {[%clk 0:03:04.3]} 6. d3 {[%clk 0:03:00.5]} 6... O-O
{[%clk 0:03:04.9]} 7. Nbd2 {[%clk 0:03:00.1]} 7... h6 {[%clk 0:03:06.4]} 8. Nc4
{[%clk 0:03:01.3]} 8... Re8 {[%clk 0:03:08.3]} 9. Ne3 {[%clk 0:03:00]} 9... c5
{[%clk 0:03:08.9]} 10. h3 {[%clk 0:03:00.2]} 10... Be6 {[%clk 0:03:09.3]} 11. g4
{[%clk 0:03:00]} 11... Nd7 {[%clk 0:03:11.2]} 12. Nf5 {[%clk 0:02:57.4]} 12...
f6 {[%clk 0:03:12.6]} 13. Kg2 {[%clk 0:02:54]} 13... Kf7 {[%clk 0:03:04.9]} 14.
Be3 {[%clk 0:02:52.4]} 14... b6 {[%clk 0:03:04.4]} 15. Qd2 {[%clk 0:02:53.3]}
15... Rh8 {[%clk 0:03:02.2]} 16. Rh1 {[%clk 0:02:39.8]} 16... Nf8 {[%clk
0:03:02]} 17. N3h4 {[%clk 0:02:34.5]} 17... g5 {[%clk 0:03:00.2]} 18. Nf3 {[%clk
0:02:28.6]} 18... Ng6 {[%clk 0:03:00.6]} 19. a3 {[%clk 0:02:21.3]} 19... h5
{[%clk 0:02:57.6]} 20. Rag1 {[%clk 0:02:13.5]} 20... Bxf5 {[%clk 0:02:56.6]} 21.
gxf5 {[%clk 0:02:09.7]} 21... Nf4+ {[%clk 0:02:56.4]} 22. Bxf4 {[%clk
0:02:10.8]} 22... exf4 {[%clk 0:02:54.1]} 23. Kf1 {[%clk 0:02:04.2]} 23... Qe7
{[%clk 0:02:52.7]} 24. Qc3 {[%clk 0:02:01.6]} 24... Rhg8 {[%clk 0:02:45.7]} 25.
Qc4+ {[%clk 0:01:59.4]} 25... Kf8 {[%clk 0:02:45.8]} 26. Rg2 {[%clk 0:01:52.8]}
26... Re8 {[%clk 0:02:39.8]} 27. Nh4 {[%clk 0:01:45.7]} 27... Qf7 {[%clk
0:02:35.9]} 28. Ng6+ {[%clk 0:01:39]} 28... Rxg6 {[%clk 0:02:34.6]} 29. Qxf7+
{[%clk 0:01:37.3]} 29... Kxf7 {[%clk 0:02:36.2]} 30. fxg6+ {[%clk 0:01:38.8]}
30... Kxg6 {[%clk 0:02:37.7]} 31. f3 {[%clk 0:01:38.7]} 31... Be5 {[%clk
0:02:35.8]} 32. c3 {[%clk 0:01:34.1]} 32... Rd8 {[%clk 0:02:33.5]} 33. Ke2
{[%clk 0:01:35.1]} 33... c6 {[%clk 0:02:28.7]} 34. Rhg1 {[%clk 0:01:28.4]} 34...
Bd6 {[%clk 0:02:25.9]} 35. d4 {[%clk 0:01:15.2]} 35... Be7 {[%clk 0:02:26.1]}
36. Rd1 {[%clk 0:01:13.9]} 36... c4 {[%clk 0:02:26.2]} 37. Rdg1 {[%clk
0:01:03.1]} 37... b5 {[%clk 0:02:26.1]} 38. Kd2 {[%clk 0:01:03.6]} 38... c5
{[%clk 0:02:25.8]} 39. d5 {[%clk 0:01:02.1]} 39... f5 {[%clk 0:02:24.7]} 40. h4
{[%clk 0:00:37.5]} 40... fxe4 {[%clk 0:02:21.7]} 41. Rxg5+ {[%clk 0:00:37.7]}
41... Bxg5 {[%clk 0:02:10.1]} 42. Rxg5+ {[%clk 0:00:38.6]} 42... Kh6 {[%clk
0:02:08.4]} 43. fxe4 {[%clk 0:00:39.6]} 43... f3 {[%clk 0:02:07.1]} 44. Ke3
{[%clk 0:00:40.5]} 44... Rf8 {[%clk 0:02:08.2]} 45. Kf2 {[%clk 0:00:41.7]} 45...
Rf4 {[%clk 0:02:07.7]} 46. Re5 {[%clk 0:00:38.1]} 46... Kg6 {[%clk 0:02:01.2]}
47. d6 {[%clk 0:00:36.1]} 47... Rf7 {[%clk 0:02:02.4]} 48. Re6+ {[%clk
0:00:34.9]} 48... Kg7 {[%clk 0:02:02.4]} 49. e5 {[%clk 0:00:36]} 49... a5 {[%clk
0:01:59.4]} 50. Re8 {[%clk 0:00:36.6]} 1-0

[Event "*** Titled Tuesday Blitz"]
[Site "Chess.com"]
[Date "2018.05.01"]
[Round "8"]
[White "LastHeroJr"]
[Black "tigra"]
[Result "0-1"]
[WhiteElo "2463"]
[BlackElo "2715"]
[TimeControl "180+2"]
[EndTime "14:49:10 PDT"]
[Termination "tigra won by checkmate"]

1. e4 {[%clk 0:03:01.9]} 1... c5 {[%clk 0:02:31.8]} 2. Nf3 {[%clk 0:03:02.8]}
2... Nc6 {[%clk 0:02:32.7]} 3. d4 {[%clk 0:03:03.5]} 3... cxd4 {[%clk
0:02:34.6]} 4. Nxd4 {[%clk 0:03:05.1]} 4... Nf6 {[%clk 0:02:36]} 5. Nc3 {[%clk
0:03:05.9]} 5... g6 {[%clk 0:02:36.5]} 6. Nxc6 {[%clk 0:03:03.4]} 6... bxc6
{[%clk 0:02:38.4]} 7. e5 {[%clk 0:03:04.5]} 7... Ng8 {[%clk 0:02:39.6]} 8. Bc4
{[%clk 0:03:04.3]} 8... Bg7 {[%clk 0:02:40.6]} 9. Qf3 {[%clk 0:03:02.5]} 9... f5
{[%clk 0:02:40.4]} 10. Bf4 {[%clk 0:02:56.8]} 10... Rb8 {[%clk 0:02:41.1]} 11.
Bb3 {[%clk 0:02:55.2]} 11... Rb4 {[%clk 0:02:38.7]} 12. O-O {[%clk 0:02:36.6]}
12... e6 {[%clk 0:02:32.2]} 13. Qg3 {[%clk 0:02:28.1]} 13... Nh6 {[%clk
0:02:22.4]} 14. Rfe1 {[%clk 0:02:18.2]} 14... Nf7 {[%clk 0:02:22.4]} 15. h4
{[%clk 0:02:16.9]} 15... h6 {[%clk 0:02:10.9]} 16. Qxg6 {[%clk 0:02:09.5]} 16...
Rxf4 {[%clk 0:02:11]} 17. Qxg7 {[%clk 0:02:10.5]} 17... Qxh4 {[%clk 0:02:11]}
18. f3 {[%clk 0:01:53.6]} 18... Qg5 {[%clk 0:01:39.2]} 19. Qxg5 {[%clk
0:01:48.6]} 19... hxg5 {[%clk 0:01:41.1]} 20. Kf2 {[%clk 0:01:45.2]} 20... Ba6
{[%clk 0:01:34.3]} 21. Rad1 {[%clk 0:01:36.8]} 21... Rfh4 {[%clk 0:01:08]} 22.
Na4 {[%clk 0:01:29.4]} 22... g4 {[%clk 0:00:44.2]} 23. f4 {[%clk 0:01:21.2]}
23... g3+ {[%clk 0:00:44.8]} 24. Kf3 {[%clk 0:01:18.8]} 24... c5 {[%clk
0:00:30.8]} 25. Nxc5 {[%clk 0:01:19.5]} 25... Bb5 {[%clk 0:00:31.5]} 26. Ba4
{[%clk 0:01:16.1]} 26... Bxa4 {[%clk 0:00:31]} 27. Nxa4 {[%clk 0:01:18]} 27...
d6 {[%clk 0:00:26.9]} 28. exd6 {[%clk 0:01:17.6]} 28... e5 {[%clk 0:00:28]} 29.
d7+ {[%clk 0:01:17.3]} 29... Ke7 {[%clk 0:00:23]} 30. Nc3 {[%clk 0:00:52]} 30...
Rxf4+ {[%clk 0:00:20.3]} 31. Kxg3 {[%clk 0:00:52.6]} 31... Rg8+ {[%clk
0:00:19.9]} 32. Kh2 {[%clk 0:00:50]} 32... Rf2 {[%clk 0:00:20.8]} 33. Nd5+
{[%clk 0:00:48.3]} 33... Kd8 {[%clk 0:00:21.2]} 34. Rg1 {[%clk 0:00:38.8]} 34...
Ng5 {[%clk 0:00:21.8]} 35. Rd3 {[%clk 0:00:33.5]} 35... Rh8+ {[%clk 0:00:22.2]}
36. Kg3 {[%clk 0:00:33.2]} 36... Ne4# {[%clk 0:00:23.7]} 0-1